[Event "Titled Tuesday Blitz February 15 Late 2022"]
[White "Brunner, Nicolas"]
[Black "Kim, Sergey"]
[WhiteFideId "620246"]
[BlackFideId "13700570"]
[WhiteElo "2372"]
[BlackElo "2612"]
[Result "0-1"]
[Round "08"]
[TimeControl "180+1"]
[Date "2022.02.16"]
[WhiteClock "0:01:11"]
[BlackClock "0:01:59"]

1. d4 {[%clk 0:03:00]}  Nf6 {[%clk 0:02:58]} 2. c4 {[%clk 0:03:01]}  g6 {[%clk 0:02:58]} 3. Nf3 {[%clk 0:03:01]}  Bg7 {[%clk 0:02:58]} 4. Nc3 {[%clk 0:03:02]}  d6 {[%clk 0:02:59]} 5. e4 {[%clk 0:03:00]}  O-O {[%clk 0:02:59]} 6. Be2 {[%clk 0:02:59]}  e5 {[%clk 0:02:59]} 7. O-O {[%clk 0:02:58]}  exd4 {[%clk 0:02:59]} 8. Nxd4 {[%clk 0:02:58]}  Re8 {[%clk 0:03:00]} 9. f3 {[%clk 0:02:54]}  Nbd7 {[%clk 0:03:00]} 10. Kh1 {[%clk 0:02:50]}  c6 {[%clk 0:03:00]} 11. Nc2 {[%clk 0:02:45]}  Re7 {[%clk 0:03:00]} 12. Qxd6 {[%clk 0:02:43]}  Re6 {[%clk 0:02:59]} 13. Qd1 {[%clk 0:02:42]}  a5 {[%clk 0:02:59]} 14. Be3 {[%clk 0:02:32]}  a4 {[%clk 0:02:59]} 15. Qd2 {[%clk 0:02:30]}  Qa5 {[%clk 0:02:58]} 16. a3 {[%clk 0:02:26]}  Re8 {[%clk 0:02:57]} 17. Rad1 {[%clk 0:02:25]}  Nc5 {[%clk 0:02:55]} 18. Nd4 {[%clk 0:02:21]}  Nfd7 {[%clk 0:02:53]} 19. Qc2 {[%clk 0:02:18]}  Ne5 {[%clk 0:02:52]} 20. Rfe1 {[%clk 0:02:13]}  Ne6 {[%clk 0:02:39]} 21. f4 {[%clk 0:01:53]}  Ng4 {[%clk 0:02:28]} 22. Bxg4 {[%clk 0:01:50]}  Nxd4 {[%clk 0:02:28]} 23. Bxd4 {[%clk 0:01:39]}  Bxg4 {[%clk 0:02:27]} 24. Rd2 {[%clk 0:01:38]}  Bf8 {[%clk 0:02:16]} 25. h3 {[%clk 0:01:30]}  Be6 {[%clk 0:02:14]} 26. Nd1 {[%clk 0:01:22]}  Rad8 {[%clk 0:02:05]} 27. Ne3 {[%clk 0:01:12]}  Rxd4 {[%clk 0:02:00]} 28. Rxd4 {[%clk 0:01:11]}  Qxe1+ {[%clk 0:01:59]} 0-1


[Site "https://www.chess.com"]

[Event "Titled Tuesday Blitz February 15 Late 2022"]
[White "Burke, Paul"]
[Black "Moreira, Ronaldo Alonso"]
[WhiteFideId "2605767"]
[BlackFideId "2110547"]
[WhiteElo "1822"]
[BlackElo "2037"]
[Result "1-0"]
[Round "08"]
[TimeControl "180+1"]
[Date "2022.02.16"]
[WhiteClock "0:00:34"]
[BlackClock "0:00:01"]

1. e4 {[%clk 0:03:00]}  e5 {[%clk 0:02:59]} 2. Nf3 {[%clk 0:03:00]}  Nc6 {[%clk 0:02:59]} 3. Bc4 {[%clk 0:02:59]}  Nf6 {[%clk 0:02:59]} 4. d4 {[%clk 0:02:59]}  exd4 {[%clk 0:02:52]} 5. O-O {[%clk 0:02:58]}  Nxe4 {[%clk 0:02:38]} 6. Re1 {[%clk 0:02:57]}  d5 {[%clk 0:02:38]} 7. Bxd5 {[%clk 0:02:57]}  Qxd5 {[%clk 0:02:38]} 8. Nc3 {[%clk 0:02:57]}  Qd7 {[%clk 0:02:25]} 9. Nxe4 {[%clk 0:02:57]}  Be7 {[%clk 0:02:20]} 10. Nfg5 {[%clk 0:02:50]}  O-O {[%clk 0:02:03]} 11. Qh5 {[%clk 0:02:47]}  h6 {[%clk 0:01:54]} 12. Nf3 {[%clk 0:02:39]}  Qg4 {[%clk 0:01:46]} 13. Qxg4 {[%clk 0:02:38]}  Bxg4 {[%clk 0:01:45]} 14. Bf4 {[%clk 0:02:27]}  Rac8 {[%clk 0:01:29]} 15. Ne5 {[%clk 0:02:14]}  Nxe5 {[%clk 0:01:21]} 16. Bxe5 {[%clk 0:02:14]}  Rfd8 {[%clk 0:01:01]} 17. Ng3 {[%clk 0:02:03]}  Bb4 {[%clk 0:00:47]} 18. c3 {[%clk 0:01:58]}  Bc5 {[%clk 0:00:22]} 19. h3 {[%clk 0:01:50]}  Be6 {[%clk 0:00:21]} 20. Ne4 {[%clk 0:01:48]}  Bb6 {[%clk 0:00:21]} 21. cxd4 {[%clk 0:01:31]}  Bxd4 {[%clk 0:00:20]} 22. Bxd4 {[%clk 0:01:31]}  Rxd4 {[%clk 0:00:21]} 23. Nc5 {[%clk 0:01:31]}  Bd5 {[%clk 0:00:20]} 24. Nb3 {[%clk 0:01:17]}  Bxb3 {[%clk 0:00:19]} 25. axb3 {[%clk 0:01:16]}  a6 {[%clk 0:00:19]} 26. Re7 {[%clk 0:01:13]}  Kf8 {[%clk 0:00:16]} 27. Rae1 {[%clk 0:01:13]}  Rd3 {[%clk 0:00:12]} 28. R1e2 {[%clk 0:01:03]}  Rxb3 {[%clk 0:00:09]} 29. Rd7 {[%clk 0:01:02]}  Re8 {[%clk 0:00:09]} 30. Red2 {[%clk 0:00:56]}  c6 {[%clk 0:00:08]} 31. Rc7 {[%clk 0:00:54]}  Rb5 {[%clk 0:00:02]} 32. Rdd7 {[%clk 0:00:51]}  Rf5 {[%clk 0:00:03]} 33. Rxb7 {[%clk 0:00:45]}  g6 {[%clk 0:00:03]} 34. f3 {[%clk 0:00:44]}  Re2 {[%clk 0:00:02]} 35. Kf1 {[%clk 0:00:42]}  Rc2 {[%clk 0:00:02]} 36. Rb8+ {[%clk 0:00:40]}  Kg7 {[%clk 0:00:02]} 37. Rb6 {[%clk 0:00:37]}  Rb5 {[%clk 0:00:01]} 38. Rxb5 {[%clk 0:00:34]} 1-0


[Site "https://www.chess.com"]

[Event "Titled Tuesday Blitz February 15 Late 2022"]
[White "Chabris, Christopher"]
[Black "Vine, Elzbieta"]
[WhiteFideId "2005263"]
[BlackFideId "1119320"]
[WhiteElo "2309"]
[BlackElo "1854"]
[Result "1-0"]
[Round "08"]
[TimeControl "180+1"]
[Date "2022.02.16"]
[WhiteClock "0:00:14"]
[BlackClock "0:00:02"]

1. e4 {[%clk 0:02:59]}  c5 {[%clk 0:02:57]} 2. Nf3 {[%clk 0:02:58]}  e6 {[%clk 0:02:51]} 3. d4 {[%clk 0:02:58]}  cxd4 {[%clk 0:02:50]} 4. Nxd4 {[%clk 0:02:59]}  Nc6 {[%clk 0:02:50]} 5. Nc3 {[%clk 0:02:59]}  Nf6 {[%clk 0:02:48]} 6. a3 {[%clk 0:02:58]}  a6 {[%clk 0:02:47]} 7. Nxc6 {[%clk 0:02:50]}  bxc6 {[%clk 0:02:46]} 8. e5 {[%clk 0:02:47]}  Nd5 {[%clk 0:02:39]} 9. Ne4 {[%clk 0:02:47]}  Qa5+ {[%clk 0:02:25]} 10. Bd2 {[%clk 0:02:35]}  Qb6 {[%clk 0:02:24]} 11. c4 {[%clk 0:02:13]}  Qxb2 {[%clk 0:01:42]} 12. Nd6+ {[%clk 0:01:15]}  Bxd6 {[%clk 0:01:40]} 13. exd6 {[%clk 0:01:15]}  O-O {[%clk 0:01:39]} 14. cxd5 {[%clk 0:01:10]}  exd5 {[%clk 0:01:35]} 15. Be2 {[%clk 0:01:03]}  Re8 {[%clk 0:01:34]} 16. O-O {[%clk 0:01:02]}  Qe5 {[%clk 0:01:30]} 17. Bd3 {[%clk 0:01:01]}  Qxd6 {[%clk 0:01:28]} 18. Qh5 {[%clk 0:00:59]}  h6 {[%clk 0:01:16]} 19. Rae1 {[%clk 0:00:45]}  Re6 {[%clk 0:01:11]} 20. Qf5 {[%clk 0:00:33]}  g6 {[%clk 0:01:08]} 21. Qh3 {[%clk 0:00:29]}  h5 {[%clk 0:01:04]} 22. Bf5 {[%clk 0:00:20]}  gxf5 {[%clk 0:00:43]} 23. Qxh5 {[%clk 0:00:20]}  Bb7 {[%clk 0:00:37]} 24. Rxe6 {[%clk 0:00:17]}  dxe6 {[%clk 0:00:35]} 25. Bg5 {[%clk 0:00:15]}  e5 {[%clk 0:00:31]} 26. Re1 {[%clk 0:00:14]}  e4 {[%clk 0:00:26]} 27. Qh4 {[%clk 0:00:14]}  Re8 {[%clk 0:00:21]} 28. Bf6 {[%clk 0:00:14]}  Qxf6 {[%clk 0:00:11]} 29. Qxf6 {[%clk 0:00:14]}  Kf8 {[%clk 0:00:10]} 30. Qxf5 {[%clk 0:00:14]}  c5 {[%clk 0:00:08]} 31. Qf6 {[%clk 0:00:14]}  c4 {[%clk 0:00:06]} 32. Qd6+ {[%clk 0:00:14]}  Kg8 {[%clk 0:00:05]} 33. Re3 {[%clk 0:00:14]}  Re6 {[%clk 0:00:02]} 34. Qd8+ {[%clk 0:00:14]} 1-0


[Site "https://www.chess.com"]

[Event "Titled Tuesday Blitz February 15 Late 2022"]
[White "Chernomordik, Pavel"]
[Black "Kujawski, Adam"]
[WhiteFideId "2804530"]
[BlackFideId "1100920"]
[WhiteElo "2249"]
[BlackElo "2053"]
[Result "0-1"]
[Round "08"]
[TimeControl "180+1"]
[Date "2022.02.16"]
[WhiteClock "0:00:27"]
[BlackClock "0:00:08"]

1. e4 {[%clk 0:03:00]}  e5 {[%clk 0:02:58]} 2. Nf3 {[%clk 0:02:59]}  Nc6 {[%clk 0:02:56]} 3. Bb5 {[%clk 0:03:00]}  a6 {[%clk 0:02:56]} 4. Ba4 {[%clk 0:02:59]}  Nf6 {[%clk 0:02:55]} 5. Qe2 {[%clk 0:02:59]}  b5 {[%clk 0:02:49]} 6. Bb3 {[%clk 0:02:59]}  Bc5 {[%clk 0:02:49]} 7. a4 {[%clk 0:02:58]}  b4 {[%clk 0:02:40]} 8. Bxf7+ {[%clk 0:02:56]}  Kxf7 {[%clk 0:02:37]} 9. Qc4+ {[%clk 0:02:55]}  Kf8 {[%clk 0:02:23]} 10. Qxc5+ {[%clk 0:02:54]}  Qe7 {[%clk 0:02:23]} 11. Qe3 {[%clk 0:02:50]}  a5 {[%clk 0:02:09]} 12. d3 {[%clk 0:02:48]}  d6 {[%clk 0:02:03]} 13. h3 {[%clk 0:02:47]}  h6 {[%clk 0:01:45]} 14. Nbd2 {[%clk 0:02:41]}  g5 {[%clk 0:01:33]} 15. Nf1 {[%clk 0:02:31]}  Nh5 {[%clk 0:01:31]} 16. g3 {[%clk 0:02:27]}  Kg7 {[%clk 0:01:07]} 17. Qe2 {[%clk 0:02:26]}  Qf7 {[%clk 0:00:58]} 18. Ne3 {[%clk 0:02:22]}  Rf8 {[%clk 0:00:52]} 19. Nf5+ {[%clk 0:01:50]}  Bxf5 {[%clk 0:00:50]} 20. exf5 {[%clk 0:01:49]}  Qxf5 {[%clk 0:00:46]} 21. Nxg5 {[%clk 0:01:43]}  Nd4 {[%clk 0:00:25]} 22. Qd2 {[%clk 0:01:34]}  hxg5 {[%clk 0:00:21]} 23. g4 {[%clk 0:01:20]}  Nf3+ {[%clk 0:00:13]} 24. Kd1 {[%clk 0:01:17]}  Nxd2 {[%clk 0:00:13]} 25. gxf5 {[%clk 0:01:14]}  Nf3 {[%clk 0:00:12]} 26. Be3 {[%clk 0:01:09]}  Rxf5 {[%clk 0:00:12]} 27. Ke2 {[%clk 0:01:09]}  Raf8 {[%clk 0:00:12]} 28. c3 {[%clk 0:01:02]}  d5 {[%clk 0:00:12]} 29. cxb4 {[%clk 0:01:01]}  d4 {[%clk 0:00:10]} 30. Bc1 {[%clk 0:00:56]}  Nh4 {[%clk 0:00:10]} 31. Rh2 {[%clk 0:00:53]}  Nf4+ {[%clk 0:00:09]} 32. Bxf4 {[%clk 0:00:53]}  exf4 {[%clk 0:00:10]} 33. b5 {[%clk 0:00:52]}  Re8+ {[%clk 0:00:09]} 34. Kf1 {[%clk 0:00:49]}  Nf3 {[%clk 0:00:09]} 35. Rg2 {[%clk 0:00:46]}  Rfe5 {[%clk 0:00:09]} 36. Rg4 {[%clk 0:00:44]}  Re1+ {[%clk 0:00:08]} 37. Rxe1 {[%clk 0:00:43]}  Rxe1+ {[%clk 0:00:09]} 38. Kg2 {[%clk 0:00:43]}  Nh4+ {[%clk 0:00:09]} 39. Kh2 {[%clk 0:00:43]}  Kf6 {[%clk 0:00:09]} 40. f3 {[%clk 0:00:29]}  Re2+ {[%clk 0:00:09]} 41. Kh1 {[%clk 0:00:29]}  Nxf3 {[%clk 0:00:08]} 42. Rg2 {[%clk 0:00:27]}  Re1+ {[%clk 0:00:08]} 0-1


[Site "https://www.chess.com"]

[Event "Titled Tuesday Blitz February 15 Late 2022"]
[White "Chigaev, Maksim"]
[Black "Lugovskoy, Maxim"]
[WhiteFideId "4108116"]
[BlackFideId "24126454"]
[WhiteElo "2502"]
[BlackElo "2444"]
[Result "1/2-1/2"]
[Round "08"]
[TimeControl "180+1"]
[Date "2022.02.15"]
[WhiteClock "0:00:06"]
[BlackClock "0:00:05"]

1. c4 {[%clk 0:03:00]}  e6 {[%clk 0:02:59]} 2. g3 {[%clk 0:03:00]}  d5 {[%clk 0:02:59]} 3. Bg2 {[%clk 0:03:01]}  Nf6 {[%clk 0:02:59]} 4. Nf3 {[%clk 0:03:01]}  d4 {[%clk 0:02:58]} 5. d3 {[%clk 0:02:59]}  c5 {[%clk 0:02:58]} 6. e4 {[%clk 0:02:58]}  Nc6 {[%clk 0:02:46]} 7. e5 {[%clk 0:02:58]}  Nd7 {[%clk 0:02:43]} 8. Bf4 {[%clk 0:02:57]}  Be7 {[%clk 0:02:39]} 9. h4 {[%clk 0:02:57]}  h6 {[%clk 0:02:32]} 10. Nbd2 {[%clk 0:02:51]}  Qc7 {[%clk 0:02:28]} 11. Qe2 {[%clk 0:02:48]}  b6 {[%clk 0:02:26]} 12. h5 {[%clk 0:02:41]}  Bb7 {[%clk 0:02:26]} 13. O-O-O {[%clk 0:02:34]}  O-O-O {[%clk 0:02:25]} 14. Kb1 {[%clk 0:02:29]}  Kb8 {[%clk 0:02:25]} 15. a3 {[%clk 0:02:24]}  a6 {[%clk 0:02:23]} 16. g4 {[%clk 0:01:38]}  Ka7 {[%clk 0:02:23]} 17. Rhg1 {[%clk 0:01:36]}  Rhg8 {[%clk 0:02:11]} 18. Ne4 {[%clk 0:00:59]}  Rdf8 {[%clk 0:02:03]} 19. Bg3 {[%clk 0:00:54]}  Rd8 {[%clk 0:02:03]} 20. g5 {[%clk 0:00:40]}  hxg5 {[%clk 0:01:56]} 21. Nfxg5 {[%clk 0:00:40]}  Rdf8 {[%clk 0:01:50]} 22. f4 {[%clk 0:00:37]}  Rh8 {[%clk 0:01:45]} 23. Bf3 {[%clk 0:00:32]}  Na5 {[%clk 0:01:40]} 24. Bg4 {[%clk 0:00:31]}  Qd8 {[%clk 0:01:30]} 25. Be1 {[%clk 0:00:20]}  Nc6 {[%clk 0:01:26]} 26. Bd2 {[%clk 0:00:20]}  Qc7 {[%clk 0:01:23]} 27. Bc1 {[%clk 0:00:20]}  Qd8 {[%clk 0:01:22]} 28. Bxe6 {[%clk 0:00:19]}  fxe6 {[%clk 0:01:17]} 29. Nxe6 {[%clk 0:00:19]}  Qe8 {[%clk 0:01:16]} 30. Nxg7 {[%clk 0:00:13]}  Qc8 {[%clk 0:01:05]} 31. Ne6 {[%clk 0:00:13]}  Re8 {[%clk 0:00:59]} 32. Ng7 {[%clk 0:00:07]}  Ref8 {[%clk 0:00:59]} 33. e6 {[%clk 0:00:06]}  Nf6 {[%clk 0:00:53]} 34. Ng5 {[%clk 0:00:05]}  Qc7 {[%clk 0:00:45]} 35. f5 {[%clk 0:00:05]}  Na5 {[%clk 0:00:35]} 36. Nf7 {[%clk 0:00:06]}  Rh7 {[%clk 0:00:31]} 37. h6 {[%clk 0:00:06]}  b5 {[%clk 0:00:29]} 38. cxb5 {[%clk 0:00:05]}  axb5 {[%clk 0:00:29]} 39. Rdf1 {[%clk 0:00:04]}  c4 {[%clk 0:00:27]} 40. Bf4 {[%clk 0:00:05]}  Qc5 {[%clk 0:00:23]} 41. Qe5 {[%clk 0:00:05]}  Nd5 {[%clk 0:00:20]} 42. Nd6 {[%clk 0:00:04]}  Nc6 {[%clk 0:00:15]} 43. Ne4 {[%clk 0:00:03]}  Nxe5 {[%clk 0:00:13]} 44. Nxc5 {[%clk 0:00:04]}  Bxc5 {[%clk 0:00:13]} 45. Bxe5 {[%clk 0:00:04]}  Rxh6 {[%clk 0:00:10]} 46. f6 {[%clk 0:00:03]}  Nxf6 {[%clk 0:00:09]} 47. Nf5 {[%clk 0:00:04]}  Rh3 {[%clk 0:00:07]} 48. e7 {[%clk 0:00:04]}  Re8 {[%clk 0:00:07]} 49. Bxf6 {[%clk 0:00:04]}  cxd3 {[%clk 0:00:06]} 50. Bxd4 {[%clk 0:00:04]}  Bxd4 {[%clk 0:00:06]} 51. Nxd4 {[%clk 0:00:05]}  Rxe7 {[%clk 0:00:07]} 52. Nxb5+ {[%clk 0:00:06]}  Kb6 {[%clk 0:00:07]} 53. Nc3 {[%clk 0:00:06]}  Rd7 {[%clk 0:00:07]} 54. Rf6+ {[%clk 0:00:06]}  Ka7 {[%clk 0:00:06]} 55. Nb5+ {[%clk 0:00:06]}  Kb8 {[%clk 0:00:07]} 56. Rg8+ {[%clk 0:00:07]}  Bc8 {[%clk 0:00:07]} 57. Rb6+ {[%clk 0:00:07]}  Rb7 {[%clk 0:00:06]} 58. Rxb7+ {[%clk 0:00:08]}  Kxb7 {[%clk 0:00:06]} 59. Nd6+ {[%clk 0:00:08]}  Kc7 {[%clk 0:00:06]} 60. Rxc8+ {[%clk 0:00:08]}  Kxd6 {[%clk 0:00:06]} 61. Rd8+ {[%clk 0:00:08]}  Ke5 {[%clk 0:00:06]} 62. Ka2 {[%clk 0:00:07]}  Ke4 {[%clk 0:00:06]} 63. a4 {[%clk 0:00:08]}  Ke3 {[%clk 0:00:06]} 64. a5 {[%clk 0:00:07]}  d2 {[%clk 0:00:05]} 65. a6 {[%clk 0:00:05]}  Rh6 {[%clk 0:00:05]} 66. Re8+ {[%clk 0:00:05]}  Kd3 {[%clk 0:00:05]} 67. Rd8+ {[%clk 0:00:05]}  Ke2 {[%clk 0:00:05]} 68. Re8+ {[%clk 0:00:05]}  Kd3 {[%clk 0:00:05]} 69. Rd8+ {[%clk 0:00:06]}  Ke2 {[%clk 0:00:05]} 70. Re8+ {[%clk 0:00:06]}  Kd3 {[%clk 0:00:05]} 1/2-1/2


[Site "https://www.chess.com"]

[Event "Titled Tuesday Blitz February 15 Late 2022"]
[White "Dias, Joao Batista"]
[Black "Urbina Quiroz, Edwin"]
[WhiteFideId "2108240"]
[BlackFideId "6500650"]
[WhiteElo "1898"]
[BlackElo "2130"]
[Result "1-0"]
[Round "08"]
[TimeControl "180+1"]
[Date "2022.02.16"]
[WhiteClock "0:01:18"]
[BlackClock "0:00:11"]

1. e4 {[%clk 0:03:00]}  e5 {[%clk 0:02:53]} 2. Nf3 {[%clk 0:03:00]}  Nc6 {[%clk 0:02:53]} 3. d4 {[%clk 0:03:00]}  exd4 {[%clk 0:02:54]} 4. Nxd4 {[%clk 0:03:00]}  Bb4+ {[%clk 0:02:53]} 5. c3 {[%clk 0:02:59]}  Bc5 {[%clk 0:02:54]} 6. Nxc6 {[%clk 0:02:59]}  bxc6 {[%clk 0:02:55]} 7. Bd3 {[%clk 0:02:58]}  Nf6 {[%clk 0:02:55]} 8. O-O {[%clk 0:02:57]}  O-O {[%clk 0:02:56]} 9. Bg5 {[%clk 0:02:57]}  Re8 {[%clk 0:02:54]} 10. Re1 {[%clk 0:02:55]}  h6 {[%clk 0:02:54]} 11. Bh4 {[%clk 0:02:54]}  g5 {[%clk 0:02:54]} 12. Bg3 {[%clk 0:02:54]}  d6 {[%clk 0:02:54]} 13. Kh1 {[%clk 0:02:50]}  Bg4 {[%clk 0:02:53]} 14. f3 {[%clk 0:02:49]}  Bh5 {[%clk 0:02:43]} 15. a4 {[%clk 0:02:48]}  a5 {[%clk 0:02:41]} 16. Na3 {[%clk 0:02:43]}  Bg6 {[%clk 0:02:39]} 17. Qc2 {[%clk 0:02:42]}  Nh5 {[%clk 0:02:39]} 18. Bf2 {[%clk 0:02:40]}  Bxf2 {[%clk 0:02:35]} 19. Qxf2 {[%clk 0:02:40]}  Nf4 {[%clk 0:02:36]} 20. Bc2 {[%clk 0:02:39]}  Qb8 {[%clk 0:02:31]} 21. b3 {[%clk 0:02:33]}  Qb6 {[%clk 0:01:24]} 22. Qxb6 {[%clk 0:02:27]}  cxb6 {[%clk 0:01:25]} 23. Nc4 {[%clk 0:02:27]}  d5 {[%clk 0:01:25]} 24. Nxb6 {[%clk 0:02:27]}  Ra7 {[%clk 0:01:25]} 25. c4 {[%clk 0:02:24]}  Rb8 {[%clk 0:01:04]} 26. c5 {[%clk 0:02:23]}  Ne6 {[%clk 0:01:03]} 27. exd5 {[%clk 0:02:19]}  Nxc5 {[%clk 0:01:03]} 28. Bxg6 {[%clk 0:02:19]}  fxg6 {[%clk 0:01:03]} 29. Rac1 {[%clk 0:02:11]}  Nd3 {[%clk 0:00:56]} 30. Nc4 {[%clk 0:01:50]}  Nxc1 {[%clk 0:00:51]} 31. Rxc1 {[%clk 0:01:49]}  cxd5 {[%clk 0:00:41]} 32. Ne5 {[%clk 0:01:49]}  Rxb3 {[%clk 0:00:37]} 33. h3 {[%clk 0:01:48]}  d4 {[%clk 0:00:34]} 34. Rc6 {[%clk 0:01:46]}  d3 {[%clk 0:00:33]} 35. Rd6 {[%clk 0:01:46]}  Ra3 {[%clk 0:00:21]} 36. Nxd3 {[%clk 0:01:45]}  Rxa4 {[%clk 0:00:20]} 37. Ne5 {[%clk 0:01:46]}  Ra1+ {[%clk 0:00:19]} 38. Kh2 {[%clk 0:01:45]}  a4 {[%clk 0:00:20]} 39. Rxg6+ {[%clk 0:01:45]}  Kh7 {[%clk 0:00:20]} 40. Rd6 {[%clk 0:01:40]}  a3 {[%clk 0:00:21]} 41. Ng4 {[%clk 0:01:40]}  a2 {[%clk 0:00:19]} 42. Nf6+ {[%clk 0:01:41]}  Kg7 {[%clk 0:00:19]} 43. Nh5+ {[%clk 0:01:39]}  Kf7 {[%clk 0:00:19]} 44. Rxh6 {[%clk 0:01:37]}  Ke8 {[%clk 0:00:18]} 45. Rh8+ {[%clk 0:01:33]}  Kf7 {[%clk 0:00:18]} 46. Rh7+ {[%clk 0:01:34]}  Kg6 {[%clk 0:00:19]} 47. Rxa7 {[%clk 0:01:34]}  Kxh5 {[%clk 0:00:20]} 48. Kg3 {[%clk 0:01:31]}  Kg6 {[%clk 0:00:20]} 49. Ra6+ {[%clk 0:01:29]}  Kh5 {[%clk 0:00:20]} 50. Kh2 {[%clk 0:01:21]}  g4 {[%clk 0:00:15]} 51. hxg4+ {[%clk 0:01:19]}  Kg5 {[%clk 0:00:16]} 52. Kg3 {[%clk 0:01:20]}  Rb1 {[%clk 0:00:11]} 53. f4# {[%clk 0:01:18]} 1-0


[Site "https://www.chess.com"]

[Event "Titled Tuesday Blitz February 15 Late 2022"]
[White "Domingo Nunez, Alejandro"]
[Black "Csonka, Balazs"]
[WhiteFideId "22245561"]
[BlackFideId "742910"]
[WhiteElo "2215"]
[BlackElo "2404"]
[Result "0-1"]
[Round "08"]
[TimeControl "180+1"]
[Date "2022.02.16"]
[WhiteClock "0:00:01"]
[BlackClock "0:00:04"]

1. Nf3 {[%clk 0:02:45]}  Nf6 {[%clk 0:02:57]} 2. g3 {[%clk 0:02:41]}  d5 {[%clk 0:02:56]} 3. Bg2 {[%clk 0:02:42]}  e6 {[%clk 0:02:56]} 4. O-O {[%clk 0:02:42]}  Be7 {[%clk 0:02:57]} 5. d4 {[%clk 0:02:42]}  O-O {[%clk 0:02:57]} 6. c4 {[%clk 0:02:43]}  Nbd7 {[%clk 0:02:55]} 7. Qc2 {[%clk 0:02:32]}  c6 {[%clk 0:02:34]} 8. Nbd2 {[%clk 0:02:27]}  b6 {[%clk 0:02:22]} 9. e4 {[%clk 0:02:26]}  Ba6 {[%clk 0:02:16]} 10. Re1 {[%clk 0:02:14]}  Rc8 {[%clk 0:02:07]} 11. Qa4 {[%clk 0:02:10]}  Bxc4 {[%clk 0:02:03]} 12. Nxc4 {[%clk 0:01:51]}  b5 {[%clk 0:02:01]} 13. Qxa7 {[%clk 0:01:46]}  bxc4 {[%clk 0:01:54]} 14. e5 {[%clk 0:01:36]}  Ne4 {[%clk 0:01:47]} 15. Qa4 {[%clk 0:01:34]}  c5 {[%clk 0:01:35]} 16. Be3 {[%clk 0:01:28]}  Ra8 {[%clk 0:01:23]} 17. Qc2 {[%clk 0:01:27]}  Qb6 {[%clk 0:01:22]} 18. b3 {[%clk 0:00:40]}  cxb3 {[%clk 0:01:13]} 19. axb3 {[%clk 0:00:41]}  Rab8 {[%clk 0:01:04]} 20. Reb1 {[%clk 0:00:31]}  Rfc8 {[%clk 0:01:00]} 21. Qd3 {[%clk 0:00:30]}  cxd4 {[%clk 0:00:57]} 22. Bxd4 {[%clk 0:00:26]}  Bc5 {[%clk 0:00:57]} 23. Qe3 {[%clk 0:00:20]}  Bxd4 {[%clk 0:00:32]} 24. Qxd4 {[%clk 0:00:11]}  Nc3 {[%clk 0:00:15]} 25. Rb2 {[%clk 0:00:03]}  Qxd4 {[%clk 0:00:12]} 26. Nxd4 {[%clk 0:00:04]}  Nxe5 {[%clk 0:00:12]} 27. Rc2 {[%clk 0:00:04]}  Nd3 {[%clk 0:00:08]} 28. Bf1 {[%clk 0:00:03]}  Nb4 {[%clk 0:00:07]} 29. Rcc1 {[%clk 0:00:03]}  Ne4 {[%clk 0:00:07]} 30. Re1 {[%clk 0:00:02]}  g6 {[%clk 0:00:06]} 31. Ra7 {[%clk 0:00:01]}  Nc6 {[%clk 0:00:06]} 32. Nxc6 {[%clk 0:00:01]}  Rxc6 {[%clk 0:00:06]} 33. Bg2 {[%clk 0:00:01]}  Nd2 {[%clk 0:00:04]} 0-1


[Site "https://www.chess.com"]

[Event "Titled Tuesday Blitz February 15 Late 2022"]
[White "Dreev, Aleksey"]
[Black "Grischuk, Alexander"]
[WhiteFideId "4100107"]
[BlackFideId "4126025"]
[WhiteElo "2636"]
[BlackElo "2762"]
[Result "0-1"]
[Round "08"]
[TimeControl "180+1"]
[Date "2022.02.15"]
[WhiteClock "0:00:04"]
[BlackClock "0:00:07"]

1. d4 {[%clk 0:03:00]}  e6 {[%clk 0:02:50]} 2. c4 {[%clk 0:03:00]}  b6 {[%clk 0:02:50]} 3. Nc3 {[%clk 0:03:00]}  Bb7 {[%clk 0:02:49]} 4. Nf3 {[%clk 0:02:55]}  Bb4 {[%clk 0:02:45]} 5. Qb3 {[%clk 0:02:51]}  a5 {[%clk 0:02:42]} 6. a3 {[%clk 0:02:51]}  a4 {[%clk 0:02:38]} 7. Qc2 {[%clk 0:02:51]}  Bxc3+ {[%clk 0:02:37]} 8. Qxc3 {[%clk 0:02:51]}  Nf6 {[%clk 0:02:34]} 9. Bg5 {[%clk 0:02:51]}  h6 {[%clk 0:02:28]} 10. Bh4 {[%clk 0:02:48]}  g5 {[%clk 0:02:24]} 11. Bg3 {[%clk 0:02:49]}  Ne4 {[%clk 0:02:25]} 12. Qc2 {[%clk 0:02:49]}  d6 {[%clk 0:02:23]} 13. e3 {[%clk 0:02:48]}  Nd7 {[%clk 0:02:20]} 14. Bd3 {[%clk 0:02:46]}  f5 {[%clk 0:02:20]} 15. O-O-O {[%clk 0:02:29]}  Qe7 {[%clk 0:02:20]} 16. Kb1 {[%clk 0:02:13]}  Ndf6 {[%clk 0:02:07]} 17. d5 {[%clk 0:02:06]}  e5 {[%clk 0:01:28]} 18. Nd2 {[%clk 0:01:58]}  O-O {[%clk 0:01:21]} 19. f3 {[%clk 0:01:47]}  Nxd2+ {[%clk 0:01:20]} 20. Qxd2 {[%clk 0:01:45]}  e4 {[%clk 0:01:19]} 21. Bc2 {[%clk 0:01:45]}  Ra5 {[%clk 0:01:13]} 22. h4 {[%clk 0:01:42]}  g4 {[%clk 0:01:13]} 23. Bf4 {[%clk 0:01:35]}  Kh7 {[%clk 0:01:10]} 24. Qd4 {[%clk 0:01:25]}  Ba6 {[%clk 0:01:07]} 25. Rc1 {[%clk 0:01:12]}  Qe8 {[%clk 0:00:59]} 26. Bg5 {[%clk 0:01:06]}  Qg6 {[%clk 0:00:42]} 27. Bxf6 {[%clk 0:01:03]}  Qxf6 {[%clk 0:00:43]} 28. fxe4 {[%clk 0:00:54]}  Qxd4 {[%clk 0:00:43]} 29. exd4 {[%clk 0:00:54]}  Bxc4 {[%clk 0:00:43]} 30. Rhe1 {[%clk 0:00:42]}  Kg7 {[%clk 0:00:37]} 31. exf5 {[%clk 0:00:24]}  Bxd5 {[%clk 0:00:36]} 32. Be4 {[%clk 0:00:21]}  Rf7 {[%clk 0:00:31]} 33. f6+ {[%clk 0:00:17]}  Kxf6 {[%clk 0:00:23]} 34. Rf1+ {[%clk 0:00:12]}  Kg7 {[%clk 0:00:19]} 35. Rxf7+ {[%clk 0:00:11]}  Kxf7 {[%clk 0:00:19]} 36. Rxc7+ {[%clk 0:00:10]}  Kf6 {[%clk 0:00:19]} 37. Bxd5 {[%clk 0:00:09]}  Rxd5 {[%clk 0:00:20]} 38. Rc4 {[%clk 0:00:09]}  b5 {[%clk 0:00:20]} 39. Rb4 {[%clk 0:00:07]}  Kf5 {[%clk 0:00:19]} 40. Kc2 {[%clk 0:00:08]}  Kf4 {[%clk 0:00:14]} 41. Kd3 {[%clk 0:00:07]}  Kg3 {[%clk 0:00:14]} 42. Ke4 {[%clk 0:00:07]}  Rh5 {[%clk 0:00:15]} 43. b3 {[%clk 0:00:06]}  Kxg2 {[%clk 0:00:08]} 44. bxa4 {[%clk 0:00:06]}  bxa4 {[%clk 0:00:08]} 45. Kf4 {[%clk 0:00:04]}  Rxh4 {[%clk 0:00:07]} 46. Rb2+ {[%clk 0:00:04]}  Kh3 {[%clk 0:00:07]} 0-1


[Site "https://www.chess.com"]